Cogmind - Beta 14 @@@ ROGUE MODE // 2024.11.06 @ 20:41:58 Player: gorb Result: Destroyed by G-47 Trooper with Particle Gun Performance ------------- Evolutions (3) 1500 Regions Visited (6) 1200 Robots Destroyed (52) 260 Value Destroyed (1782) 1782 Prototype IDs (2) 40 Alien Tech Used (0) 0 Bonus (419) 419 TOTAL SCORE: 5201 Bonus ------- High Alert Combat Kills 83 Follower Combat Kills 393 Friendly Fire -57 Cogmind --------- Core Integrity 0/700 Matter 242/300 Energy 100/100 System Corruption 1% Temperature Cool (9) Movement Core (350) Ox6 Location -7/Lower Caves Parts ------- > --- POWER (2) -------- (None) > --- PROPULSION (4) --- (None) > --- UTILITY (4) ------ Large Storage Unit Armor Integrity Analyzer Armor Integrity Analyzer > --- WEAPON (3) ------- (None) > --- INVENTORY (15) --- Improved Deuterium Engine Medium Battery (150) Terrain Scanner ECM Suite Core Shielding Power Shielding Improved Utility Shielding Hardened Light Armor Plating Improved Shield Generator Beam Rifle Peak State ------------ > --- POWER ------------ Light Nuclear Core Improved Deuterium Engine > --- PROPULSION ------- Improved Aluminum Leg Carbon-fiber Leg VSS Leg VSS Leg > --- UTILITY ---------- Large Storage Unit Armor Integrity Analyzer ECM Suite Core Shielding > --- WEAPON ----------- Precision Shock Rifle Ion Cannon Gauss Cannon > --- INVENTORY -------- Light Nuclear Core Improved Deuterium Engine Medium Battery Terrain Scanner Armor Integrity Analyzer Kinecellerator Power Shielding Improved Utility Shielding Hardened Light Armor Plating Improved Shield Generator Drone Bay Shock Rifle Beam Rifle Heavy Ion Cannon Heavy Assault Rifle [Rating: 41] Favorites ----------- Power Ion Engine Engine Ion Engine Power Core Light Nuclear Core Propulsion VSS Leg Leg VSS Leg Utility Large Storage Unit Device ECM Suite Storage Large Storage Unit Processor Armor Integrity Analyzer Protection Core Shielding Weapon Shotgun Energy Gun Precision Shock Rifle Energy Cannon Advanced Beam Cannon Ballistic Gun Shotgun Ballistic Cannon Gauss Cannon Launcher Rocket Launcher Build | -11 -10 -9 -9 -8 -7 -7 ------- Run | Yrd Mat Mat Sto Mat Fac Low Slots Evolved 6 | . . 2 . 2 2 . Power 1 | . . . . . 1 . Propulsion 2 | . . 2 . . . . Utility 2 | . . . . 1 1 . Weapon 1 | . . . . 1 . . Parts Attached 53 | 6 2 6 10 9 12 8 Power 9 | 1 . . . 3 4 1 Engine 6 | 1 . . . 2 3 . Core 3 | . . . . 1 1 1 Reactor . | . . . . . . . Propulsion 10 | 2 . 4 1 1 2 . Treads . | . . . . . . . Leg 10 | 2 . 4 1 1 2 . Wheel . | . . . . . . . Hover . | . . . . . . . Flight . | . . . . . . . Utility 15 | 1 2 . 5 2 2 3 Device 6 | . 1 . 2 1 . 2 Storage 5 | 1 1 . 2 1 . . Processor 2 | . . . . . 1 1 Hackware . | . . . . . . . Protection 2 | . . . 1 . 1 . Artifact . | . . . . . . . Weapon 19 | 2 . 2 4 3 4 4 Energy Gun 4 | 2 . . . . 1 1 Energy Cannon 3 | . . . . 1 1 1 Ballistic Gun 8 | . . 2 4 1 . 1 Ballistic Cannon 2 | . . . . . 1 1 Launcher 2 | . . . . 1 1 . Special Weapon . | . . . . . . . Impact Weapon . | . . . . . . . Slashing Weapon . | . . . . . . . Piercing Weapon . | . . . . . . . Special Melee Weapon . | . . . . . . . Unidentified Prototypes 2 | . . . . 1 1 . Parts Lost 28 | . . . 3 2 8 15 Power 6 | . . . . . 3 3 Propulsion 8 | . . . 1 1 2 4 Utility 3 | . . . 1 . . 2 Weapon 11 | . . . 1 1 3 6 Highest Loss Streak 15 | . . . 1 1 3 15 To Critical Strikes 1 | . . . 1 . . . Average Slot Usage (%) 94 | . 93 81 96 97 96 92 Engine 8 | . 14 11 11 6 4 6 Core 2 | . . . . 2 6 6 Leg 33 | . 28 26 43 34 30 26 Device 6 | . 7 11 3 12 7 6 Storage 10 | . 14 11 12 14 7 7 Processor 2 | . . . . . 6 7 Protection 4 | . . . 6 . 7 6 Energy Gun 4 | . 28 7 . . . 6 Energy Cannon 4 | . . . . 9 7 6 Ballistic Gun 10 | . . 14 20 13 5 . Ballistic Cannon 1 | . . . . . . 6 Launcher 1 | . . . . 3 6 . Peak Build Rating 41 | 6 7 20 23 27 39 41 Average Rating 24 | 4 6 10 19 25 34 36 On Entrance 17 | . 6 7 20 21 27 39 Naked Turns . | . . . . . . . Heaviest Build 59 | 13 19 22 34 43 55 59 Greatest Support 52 | 20 20 48 49 51 52 52 Greatest Overweight (x) 4 | . . 1 . 1 1 4 Average Overweight (x) . | . . . . . . 1 Largest Inventory Capacity 15 | 8 10 10 15 15 15 15 Average Capacity 12 | 6 9 10 10 15 15 15 Most Carried 15 | 5 9 10 10 14 15 15 Average Carried 10 | 3 6 9 8 9 13 11 Final Capacity 15 | 8 10 10 15 15 15 15 Final Carried 14 | 4 9 10 10 14 10 10 Class Distribution -------------------- 47% | Gunner 39% | Mutant 11% | Commander-Mutant Dominant Class ---------------- Mutant | -10/Materials Mutant | -9/Materials Mutant | -9/Storage Gunner | -8/Materials Gunner | -7/Factory Gunner | -7/Lower Caves Resources | -11 -10 -9 -9 -8 -7 -7 ----------- Run | Yrd Mat Mat Sto Mat Fac Low Matter Collected 1324 | 179 91 70 383 215 76 310 Remotely . | . . . . . . . Salvage Created 1597 | . 57 88 557 232 435 228 Parts 112 | . 5 10 41 13 34 9 Haulers Intercepted . | . . . . . . . Recyclers Shooed 4 | . . . 3 1 . . Parts Field Recycled . | . . . . . . . Retrieved Matter . | . . . . . . . Parts Self-Destructed 2 | . . . . . . 2 Prevented . | . . . . . . . Kills | -11 -10 -9 -9 -8 -7 -7 ------- Run | Yrd Mat Mat Sto Mat Fac Low Combat Hostiles Destroyed 37 | . 1 1 13 6 12 4 Guns 17 | . 1 1 13 . 2 . Cannons 10 | . . . . 5 1 4 AOE 10 | . . . . 1 9 . Classes Destroyed 15 | . 2 1 3 2 5 2 Worker 5 | . . . . . 5 . Builder 2 | . . . . . 2 . Tunneler 1 | . . . . 1 . . Recycler 1 | . . . 1 . . . Mechanic 1 | . . . . . 1 . Operator 1 | . . . 1 . . . Watcher 4 | . 1 2 . . 1 . Swarmer 7 | . . . 3 . 4 . Grunt 14 | . 1 . 4 4 4 1 Duelist 1 | . . . . 1 . . Sentry 8 | . . 1 6 1 . . Hunter 3 | . . . . . 3 . Programmer 1 | . . . . . 1 . Savage 2 | . . . . . . 2 Mutant 1 | . . . . . . 1 Best Kill Streak 11 | . 1 2 3 4 11 2 Combat Bots Only 5 | . 1 1 3 3 5 2 Max Kills in Single Turn 3 | . 1 1 2 2 3 1 Gunslinging . | . . . . . . . Exploded 3 | . . . . 1 3 . Melee . | . . . . . . . Uniques/NPCs Destroyed . | . . . . . . . Combat | -11 -10 -9 -9 -8 -7 -7 -------- Run | Yrd Mat Mat Sto Mat Fac Low Hostile Shots Fired 304 | . 3 6 75 45 34 141 Missed 74 | . 1 2 21 15 10 25 Damage Taken 3880 | . 23 62 844 286 729 1936 Core 1018 | . 12 32 226 39 36 673 Absorbed by Shields . | . . . . . . . Redirected to Shielding 28 | . . . . . 8 20 Core Remaining (%) 80 | 100 95 . 35 92 . . Volleys Fired 117 | 1 3 9 39 25 23 17 Largest 3 | 2 2 2 2 3 3 3 Hottest 164 | 90 90 90 46 114 164 163 Shots Fired 262 | 2 6 18 78 62 58 38 Gun 168 | 2 6 18 78 34 14 16 Cannon 77 | . . . . 25 30 22 Launcher 17 | . . . . 3 14 . Special . | . . . . . . . Kinetic 159 | . . 16 78 34 14 17 Thermal 75 | 2 6 2 . 25 30 10 Explosive 17 | . . . . 3 14 . Electromagnetic 11 | . . . . . . 11 Robot Hit Streak 9 | . 2 3 9 7 8 9 Robot Miss Streak 7 | . 1 6 7 4 3 2 Penetration Max . | . . . . . . . Secondary Targets . | . . . . . . . Shots Hit Robots 158 | . 3 9 48 34 38 26 Core Hits 102 | . 3 6 31 19 33 10 Critical Kills . | . . . . . . . Critical Parts Destroyed . | . . . . . . . Critical Strikes 3 | . 1 . . . . 2 Burn 1 | . 1 . . . . . Blast 1 | . . . . . . 1 Corrupt 1 | . . . . . . 1 Melee Attacks . | . . . . . . . Impact . | . . . . . . . Slashing . | . . . . . . . Piercing . | . . . . . . . Sneak Attacks . | . . . . . . . Combat Hostiles . | . . . . . . . Follow-up Attacks . | . . . . . . . Damage Inflicted 4169 | . 36 134 727 935 1688 649 Guns 1593 | . 36 134 713 265 220 225 Cannons 1169 | . . . . 348 397 424 Explosions 1391 | . . . . 320 1071 . Melee . | . . . . . . . Ramming 16 | . . . 14 2 . . Kinetic 1642 | . . 134 713 265 220 310 Thermal 941 | . 36 . . 348 397 160 Explosive 1391 | . . . . 320 1071 . Electromagnetic 179 | . . . . . . 179 Impact . | . . . . . . . Slashing . | . . . . . . . Piercing . | . . . . . . . Highest Corruption 9 | . . . 9 . 1 1 Average Corruption 3 | . . . 7 . 1 1 Corruption Purged . | . . . . . . . Corruption Blocked . | . . . . . . . Effects 17 | . . . 13 . . 4 Message Errors 4 | . . . 3 . . 1 Matter Fused 5 | . . . 5 . . . Heat Flow Errors 3 | . . . 2 . . 1 Energy Discharges 3 | . . . 2 . . 1 Data Loss (minor) 1 | . . . 1 . . . Misfires 1 | . . . . . . 1 Overload Shots . | . . . . . . . Overflow Damage 109 | . . . . 3 106 . Projectiles . | . . . . . . . Explosions 109 | . . . . 3 106 . Melee . | . . . . . . . Knockbacks 4 | . . . . . . 4 Impact . | . . . . . . . Kinetic 3 | . . . . . . 3 Secondary 1 | . . . . . . 1 Self-Inflicted Damage 330 | . . . . . 330 . Shots 8 | . . . . . 8 . Rammed . | . . . . . . . Targets Rammed 5 | . . . 4 1 . . Kicked 5 | . . . 4 1 . . Crushed . | . . . . . . . Highest Temperature 528 | 30 66 21 215 144 312 528 Average Temperature 101 | 18 29 10 30 53 88 208 Received Heat Transfer 1608 | . 12 18 273 90 45 1170 Effects 13 | . . . . . . 13 Shutdowns 3 | . . . . . . 3 Energy Bleed 2 | . . . . . . 2 Interference 5 | . . . . . . 5 Damage (minor) 2 | . . . . . . 2 Damage (major) 1 | . . . . . . 1 Siege Activations . | . . . . . . . Robots Corrupted . | . . . . . . . Combat Hostiles . | . . . . . . . Parts Fried . | . . . . . . . Impact Corruptions . | . . . . . . . Robots Melted . | . . . . . . . Combat Hostiles . | . . . . . . . Parts Melted . | . . . . . . . Heat Transferred 1739 | . 185 . . 629 666 259 Parts Sabotaged . | . . . . . . . Parts Stolen . | . . . . . . . Parts Stripped . | . . . . . . . Power Chain Reactions . | . . . . . . . Alert | -11 -10 -9 -9 -8 -7 -7 ------- Run | Yrd Mat Mat Sto Mat Fac Low Peak Influence 650 | . 42 91 650 503 527 . Initial 206 | . . 17 38 206 137 . Average 241 | . 21 46 367 357 177 . Maximum Alert Level 2 | . . . 2 2 2 . Low Security (%) 51 | 100 100 100 23 . 83 . Level 1 23 | . . . 26 66 7 . Level 2 25 | . . . 49 33 8 . Level 3 . | . . . . . . . Level 4 . | . . . . . . . Level 5 . | . . . . . . . High Security . | . . . . . . . Max Security . | . . . . . . . Squads Dispatched 9 | . . . 3 . 6 . Investigation 4 | . . . 3 . 1 . Extermination 1 | . . . . . 1 . Reinforcement 2 | . . . . . 2 . Assault 1 | . . . . . 1 . Garrison 1 | . . . . . 1 . Intercept . | . . . . . . . Searches Triggered . | . . . . . . . Construction Impeded 1 | . . . . . 1 . Haulers Reinforced . | . . . . . . . Active Scanning Responses . | . . . . . . . Cargo Convoy Interrupts . | . . . . . . . Stealth | -11 -10 -9 -9 -8 -7 -7 --------- Run | Yrd Mat Mat Sto Mat Fac Low Distress Signals 2 | . . . 1 1 . . Communications Jammed . | . . . . . . . Distress Signals . | . . . . . . . Times Spotted 72 | . 2 4 28 14 16 8 Peak Tracking Total 5 | . 1 3 3 4 3 5 Tactical Retreats 6 | . . . 4 2 . . Traps | -11 -10 -9 -9 -8 -7 -7 ------- Run | Yrd Mat Mat Sto Mat Fac Low Traps Triggered 8 | . . . 7 . 1 . Indirectly . | . . . . . . . Trap Hack Attempts . | . . . . . . . Triggered . | . . . . . . . Disarmed . | . . . . . . . Reprogrammed . | . . . . . . . Reused . | . . . . . . . Traps Extracted . | . . . . . . . Installed . | . . . . . . . Triggered . | . . . . . . . Machines | -11 -10 -9 -9 -8 -7 -7 ---------- Run | Yrd Mat Mat Sto Mat Fac Low Machines Disabled 4 | . . . . 2 2 . Max in Single Turn 2 | . . . . 1 2 . Garrison Access 1 | . . . . . 1 . Machines Repaired . | . . . . . . . Machines Dismantled . | . . . . . . . Machines Sabotaged . | . . . . . . . Overloaded Fab Kills . | . . . . . . . Hacking | -11 -10 -9 -9 -8 -7 -7 --------- Run | Yrd Mat Mat Sto Mat Fac Low Machines Accessed 7 | . . . 5 1 1 . Terminals 5 | . . . 4 1 . . Fabricators . | . . . . . . . Repair Stations . | . . . . . . . Recycling Units . | . . . . . . . Scanalyzers . | . . . . . . . Garrison Access 2 | . . . 1 . 1 . Total Hacks 18 | . . . 13 2 3 . Successful 3 | . . . 1 2 . . Failed 15 | . . . 12 . 3 . Catastrophic 5 | . . . 3 . 2 . Database Lockouts . | . . . . . . . Manual 1 | . . . 1 . . . Terminals 11 | . . . 9 2 . . Fabricators . | . . . . . . . Repair Stations . | . . . . . . . Recycling Units . | . . . . . . . Scanalyzers . | . . . . . . . Garrison Access 7 | . . . 4 . 3 . Terminal Hacks 3 | . . . 1 2 . . Open Door 1 | . . . 1 . . . Alert Level 1 | . . . . 1 . . Investigation Status 1 | . . . . 1 . . Fabricator Hacks . | . . . . . . . Repair Station Hacks . | . . . . . . . Recycling Unit Hacks . | . . . . . . . Scanalyzer . | . . . . . . . Garrison Access Hacks . | . . . . . . . Unauthorized Hacks . | . . . . . . . Terminals . | . . . . . . . Fabricators . | . . . . . . . Repair Stations . | . . . . . . . Recycling Units . | . . . . . . . Scanalyzers . | . . . . . . . Garrison Access . | . . . . . . . Data Cores Recovered 1 | . . . 1 . . . Used . | . . . . . . . Hacking Detections 6 | . . . 5 . 1 . Full Trace Events 3 | . . . 2 . 1 . Feedback Events . | . . . . . . . Feedback Blocked . | . . . . . . . Robot Schematics Acquired . | . . . . . . . Robots Built . | . . . . . . . Authchips . | . . . . . . . Time . | . . . . . . . Total Robot Build Rating . | . . . . . . . Part Schematics Acquired . | . . . . . . . Parts Built . | . . . . . . . Authchips . | . . . . . . . Time . | . . . . . . . Total Part Build Rating . | . . . . . . . Parts Repaired . | . . . . . . . Time . | . . . . . . . Parts Recycled . | . . . . . . . Recycled Matter . | . . . . . . . Retrieved Matter . | . . . . . . . Retrieved Components . | . . . . . . . Parts Scanalyzed . | . . . . . . . Part Schematics Acquired . | . . . . . . . Parts Damaged . | . . . . . . . Bothacking | -11 -10 -9 -9 -8 -7 -7 ------------ Run | Yrd Mat Mat Sto Mat Fac Low Used RIF Installer . | . . . . . . . Robots Hacked . | . . . . . . . Non-combat . | . . . . . . . Combat . | . . . . . . . Robot Hacks Applied . | . . . . . . . Relay Couplers Released 3 | . . . . . 3 . Machine Destruction 3 | . . . . . 3 . Fabnet Peak Effective % . | . . . . . . . Robots Rewired . | . . . . . . . Allies Hacked . | . . . . . . . Hacks Repelled . | . . . . . . . Allies | -11 -10 -9 -9 -8 -7 -7 -------- Run | Yrd Mat Mat Sto Mat Fac Low Total Allies 10 | . . . 10 . . . Largest Group 10 | . . . 10 2 . . Highest-Rated Group 88 | . . . 88 16 . . Highest-Rated Ally 16 | . . . 16 8 . . Total Orders . | . . . . . . . Ally Attacks 97 | . . . 65 32 . . Total Damage 881 | . . . 661 220 . . Kills 15 | . . . 11 4 . . Allies Corrupted . | . . . . . . . Allies Melted . | . . . . . . . Intel | -11 -10 -9 -9 -8 -7 -7 ------- Run | Yrd Mat Mat Sto Mat Fac Low Robot Analysis Total . | . . . . . . . Derelict Logs Recovered 1 | . . . . . . 1 Drone Launches 2 | . . . . . . 2 Drone Recoveries . | . . . . . . . Exploration | -11 -10 -9 -9 -8 -7 -7 ------------- Run | Yrd Mat Mat Sto Mat Fac Low Turns Passed 2848 | 65 286 169 815 415 602 496 Spaces Moved 1594 | 47 223 98 475 172 365 214 Core 13 | 13 . . . . . . Treads . | . . . . . . . Legs 1581 | 34 223 98 475 172 365 214 Wheels . | . . . . . . . Hover . | . . . . . . . Flight . | . . . . . . . Fastest Speed 50 | 50 120 90 90 97 97 185 Average Speed 115 | 100 120 132 93 106 102 186 Slowest Speed 450 | 120 120 190 97 185 185 450 Overloaded Moves . | . . . . . . . Propulsion Burnouts . | . . . . . . . Robots Hopped . | . . . . . . . Cave-ins Triggered . | . . . . . . . Exploration Rate (%) 26 | 3 39 14 67 18 9 33 Regions Visited 6 Branch Regions 2 Pre-discovered Areas . | . . . . . . . Known Exits Taken . | . . . . . . . Unknown Exits Taken 6 | 1 1 1 1 1 1 . Scrap Searched . | . . . . . . . Spaces Dug . | . . . . . . . Terrain Destroyed 124 | . . . . 18 102 4 Melee . | . . . . . . . Projectile 5 | . . . . . 1 4 AOE 119 | . . . . 18 101 . Terrain Rammed . | . . . . . . . Walls Destroyed . | . . . . . . . Machines Disabled . | . . . . . . . Actions | -11 -10 -9 -9 -8 -7 -7 --------- Run | Yrd Mat Mat Sto Mat Fac Low Total 2364 | 61 235 119 776 349 545 279 Wait 523 | . . . 224 134 130 35 Move 1588 | 46 222 97 474 171 364 214 Hop . | . . . . . . . Pick Up 55 | 8 7 3 13 9 10 5 Fast Attach 6 | 2 . 4 . . . . Attach 28 | 4 1 . 2 5 11 5 Detach 1 | . . . . . 1 . Swap 19 | . 1 2 8 4 1 3 Drop 22 | . 1 4 12 . 5 . Fire 117 | 1 3 9 39 25 23 17 Melee . | . . . . . . . Ram . | . . . . . . . Kick 5 | . . . 4 1 . . Crush . | . . . . . . . Escape Stasis . | . . . . . . . Rewire . | . . . . . . . Trap . | . . . . . . . Miscellaneous . | . . . . . . . Route ------- -11/Scrapyard -10/Materials -9/Materials -9/Storage -8/Materials -7/Factory (discovered 2 exits: [*Low x2]) -7/Lower Caves History --------- Turn | Location | Event 11 | -11/Scrapyard | Discovered new exit (range 15) 66 | -11/Scrapyard | Entered Materials 309 | -10/Materials | Build established: Mutant 325 | -10/Materials | Discovered new exit (range 16) 352 | -10/Materials | Entered another Materials area 352 | -9/Materials | Evolved 2 slots: Propulsion x2 379 | -9/Materials | Discovered new exit (range 14) 521 | -9/Materials | Entered Storage 814 | -9/Storage | Core integrity fell below 50% 920 | -9/Storage | Assisted by bots powering up and referring to "LRC-V3" 1139 | -9/Storage | Lost 3 allies 1195 | -9/Storage | Build established: Commander-Mutant 1217 | -9/Storage | Discovered new exit (range 15) 1247 | -9/Storage | Lost 5 allies 1336 | -9/Storage | Entered Materials 1336 | -8/Materials | Accompanied by 2 allies 1336 | -8/Materials | Evolved 2 slots: Utility x1, Weapon x1 1646 | -8/Materials | Discovered new exit (range 9) 1751 | -8/Materials | Entered Factory 1751 | -7/Factory | Evolved 2 slots: Power x1, Utility x1 2105 | -7/Factory | Build established: Gunner 2156 | -7/Factory | Discovered new exit (range 12) 2162 | -7/Factory | Garrison activated, responded to threat 2291 | -7/Factory | Lost 3 parts (2n1w) 2324 | -7/Factory | Discovered new exit (range 10) 2353 | -7/Factory | Entered Lower Caves 2368 | -7/Lower Caves | Lost 3 parts (1p2w) 2593 | -7/Lower Caves | Learned Factory garrison access intel 2622 | -7/Lower Caves | Attacked by a faux Warlord 2830 | -7/Lower Caves | Core integrity fell below 50% 2840 | -7/Lower Caves | Core integrity fell below 20% 2849 | -7/Lower Caves | Destroyed by G-47 Trooper with Particle Gun Last Messages --------------- Critical hit (Burn: +37). Lgt. Nuclear Core destroyed. G-47 Trooper knocked back. G-47 Trooper IFF system glitched. Shock Rifle destroyed. Slug penetrates G-47 Trooper. G-47 Trooper Aluminum Leg blasted off. Critical hit (Burn: +37). Kinecellerator destroyed. Gauss Cannon destroyed. Power failure, Imp. Deuterium Engine shutdown. Imp. Deuterium Engine destroyed. Overheating: Armor Integrity Analyzer damaged (-7). G-47 Trooper misfires. G-47 Trooper IFF system glitched. Critical hit (Burn: +37). G-47 Trooper IFF system glitched. G-47 Trooper destroyed. Aluminum Leg fries itself beyond repair. Map ----- +----------------------------------------------------+ | ?????????????????????????????????????????????????? | | ?????????????????????????????????????????????????? | | ?????????????????????????????????????????????????? | | ?????????????????????????????????????????????????? | | ?????????????????????????????????????????????????? | | ?????????????????????????????????????????????????? | | ?????????????????????????????????????????????????? | | ?????????????????????????????????????????????????? | | ?????????????????????????????????????????????????? | | ?????????????????????????????????????????????????? | | ????????????????????????############?????????????? | | ????????????????????????# ##??###???????? | | ????????????????????????# ####### ### ######### | | ????????????????????????# #/ # #" ## | | ?????????????????????#### #! " ## | | ?????????????????????# ## % #*=%= ## ## | | ?????????????????????# # /% %!* ###### ## | | ????????????????????## ## #[ *#!#% ##????# ## | | ???????????????????## # ## # #?????# ## | | ???????????????????# ####### ##????# ## | | ???????????????????# %=/###### ## | | ???????????????????## &&& # #######%%% %/ | | ????????????????????###&%& ;###?????##= %% | | ????????????????????##;&&n ##??###??#%##### # | | ????????????????????# #?# ####%#???# ## | | ????????????????????# @ ## ## #???# ### | | ????????????????????## # ;### ## #### #?## | | ?????????????????????#### !% #??## | | ????????????????????????#gg= ???# | | ????????????????????????##;%g ### ??? | | ?????????????????????????# % ###????? ??? | | ???????????????????????? % % #??????? ??# | | ?????????????????????? #??????# ##??# | | ????????????????????# ## #??????##????## | | ????????????????????# #?## #????????????? | | ????????????????????###???## #????????????? | | ??????????????????????????? ##????????????? | | ??????????????????????????? ##?????????????? | | ??????????????????????????? ##??????????????? | | ??????????????????????????? ###???????????????? | | ???????????????????????????## #?????????????????? | | ????????????????????????????? #?????????????????? | | ????????????????????????????? #?????????????????? | | ????????????????????????????? #?????????????????? | | ????????????????????????????? #?????????????????? | | ????????????????????????????? ??????????????????? | | ?????????????????????????????????????????????????? | | ?????????????????????????????????????????????????? | | ?????????????????????????????????????????????????? | | ?????????????????????????????????????????????????? | +----------------------------------------------------+ Best States ------------- Heat Dissipation 34 Energy Generation 25 Energy Capacity 400 Matter Stores 300 Matter Capacity 300 Sight Range 16 Terrain Scan Range 14 Terrain Scan Density 10 ECM Strength 1 Armor Coverage 150 Core Shielding 20 Evasion (%) 57 Armor Integrity Analysis 30 Kinecelleration 30 Item Schematics ----------------- None Robot Schematics ------------------ None Fabricated ------------ Nothing Alien Tech Used ----------------- None Achievements -------------- None Challenges ------------ None Game ------ Seed UltimateSurveybotProjector Manual? 0 Play Time 00:37:16 Cumulative 21.8 hours Start 2024.11.06 @ 19:39:11 End 2024.11.06 @ 20:41:58 Sessions 1 Manual Loads 0 Difficulty Rogue Special Mode None Game No. 31 Rogue 29 Adventurer 0 Explorer 2 Win Type - Total 0 Types 0/0/0/0/0/0/0/0/0 Lore% 10 Gallery% 20 Achievement% 19 Wizard Run 0 Options --------- Layout 1 ASCII 0 Keyboard 0 Movement Mouse Keybinds 0 Fullscreen 1 Font 24/Smallcaps Map View 50x35 Zoom Use 0% Tactical HUD 0 Map Filters NONE Filters NONE Steam 1 RUN: 9c3a5564-05b8-470c-ab38-a4193cd210b6